Cogmind - Beta 10.2 @@@ ROGUE MODE // 2021.01.07 @ 09:50:15 Player: sentrybuster Result: Self-destructed Performance ------------- Evolutions (1) 500 Regions Visited (4) 800 Robots Destroyed (27) 135 Value Destroyed (490) 490 Prototype IDs (0) 0 Alien Tech Used (0) 0 Bonus (0) 0 TOTAL SCORE: 1925 Bonus ------- None Cogmind --------- Core Integrity 24/400 Matter 297/300 Energy 125/125 System Corruption 0% Temperature Cool (0) Movement Walking (120) Location -9/Storage Parts ------- > --- POWER (1) -------- Light Ion Engine > --- PROPULSION (2) --- Aluminum Leg Aluminum Leg > --- UTILITY (3) ------ Small Storage Unit Visual Processing Unit > --- WEAPON (3) ------- Small Laser Light Assault Rifle Heavy Hammer > --- INVENTORY (6) ---- Light Treads Improved Treads Heat Sink Medium Laser Small Laser Light Assault Rifle Peak State ------------ > --- POWER ------------ Light Ion Engine > --- PROPULSION ------- Improved Treads Aluminum Leg > --- UTILITY ---------- Small Storage Unit Visual Processing Unit Light Armor Plating > --- WEAPON ----------- Light Assault Rifle Heavy Hammer Mining Claw > --- INVENTORY -------- Light Treads Aluminum Leg Medium Laser Small Laser Light Assault Rifle [Rating: 12] Favorites ----------- Power Light Ion Engine Engine Light Ion Engine Propulsion Light Treads Treads Light Treads Leg Aluminum Leg Utility Small Storage Unit Device Sensor Array Storage Small Storage Unit Processor Visual Processing Unit Protection Light Armor Plating Weapon Mining Claw Energy Gun Medium Laser Ballistic Gun Light Assault Rifle Impact Weapon Heavy Hammer Slashing Weapon Mining Claw Build | -11 -10 -10 -9 -9 ------- Run | Scr Mat Min Mat Sto Slots Evolved 2 | . . . 2 . Power . | . . . . . Propulsion . | . . . . . Utility 1 | . . . 1 . Weapon 1 | . . . 1 . Parts Attached 26 | 6 4 . 16 . Power 3 | 1 1 . 1 . Engine 3 | 1 1 . 1 . Core . | . . . . . Reactor . | . . . . . Propulsion 9 | 2 . . 7 . Treads 3 | 2 . . 1 . Leg 6 | . . . 6 . Wheel . | . . . . . Hover . | . . . . . Flight . | . . . . . Utility 5 | 1 1 . 3 . Device 2 | . 1 . 1 . Storage 1 | 1 . . . . Processor 1 | . . . 1 . Hackware . | . . . . . Protection 1 | . . . 1 . Artifact . | . . . . . Weapon 9 | 2 2 . 5 . Energy Gun 2 | 1 . . 1 . Energy Cannon . | . . . . . Ballistic Gun 2 | 1 . . 1 . Ballistic Cannon . | . . . . . Launcher . | . . . . . Special Weapon . | . . . . . Impact Weapon 1 | . . . 1 . Slashing Weapon 4 | . 2 . 2 . Piercing Weapon . | . . . . . Special Melee Weapon . | . . . . . Unidentified Prototypes . | . . . . . Parts Lost 13 | . . . 13 . Power 1 | . . . 1 . Propulsion 5 | . . . 5 . Utility 3 | . . . 3 . Weapon 4 | . . . 4 . Highest Loss Streak 4 | . . . 4 . Average Slot Usage (%) 82 | . 94 100 77 . Engine 9 | . 14 14 8 . Treads 16 | . 28 28 11 . Leg 5 | . . . 8 . Device 5 | . 8 14 4 . Storage 11 | . 14 14 11 . Processor 2 | . . . 3 . Energy Gun 3 | . 8 . 1 . Ballistic Gun 5 | . 8 . 4 . Impact Weapon 3 | . . . 4 . Slashing Weapon 18 | . 11 28 19 . Naked Turns . | . . . . . Heaviest Build 16 | 10 12 12 16 . Greatest Support 40 | 40 40 40 40 . Greatest Overweight (x) 2 | . . . 2 . Average Overweight (x) . | . . . . . Largest Inventory Capacity 6 | 6 6 6 6 . Average Capacity 5 | 4 6 6 6 . Most Carried 6 | 4 6 6 6 . Average Carried 4 | 2 5 6 4 . Final Capacity 6 | 6 6 6 6 6 Final Carried 6 | 4 6 6 6 6 Class Distribution -------------------- 85% | Mutant 14% | Scavenger-Mutant Dominant Class ---------------- Mutant | -10/Materials Mutant | -10/Mines Mutant | -9/Materials Mutant | -9/Storage Resources | -11 -10 -10 -9 -9 ----------- Run | Scr Mat Min Mat Sto Matter Collected 456 | 208 95 . 153 . Remotely . | . . . . . Salvage Created 792 | . 133 . 659 . Parts 51 | . 15 . 36 . Haulers Intercepted . | . . . . . Recyclers Shooed 1 | . 1 . . . Parts Field Recycled . | . . . . . Retrieved Matter . | . . . . . Parts Self-Destructed . | . . . . . Prevented . | . . . . . Kills | -11 -10 -10 -9 -9 ------- Run | Scr Mat Min Mat Sto Combat Hostiles Destroyed 19 | . 5 . 14 . Melee 13 | . 1 . 12 . Guns 5 | . 4 . 1 . Classes Destroyed 8 | . 3 . 5 . Worker 2 | . . . 2 . Tunneler 1 | . . . 1 . Recycler 2 | . . . 2 . Watcher 3 | . 1 . 2 . Swarmer 11 | . 4 . 7 . Grunt 6 | . 1 . 5 . Brawler 1 | . . . 1 . Sentry 1 | . . . 1 . Best Kill Streak 3 | . 2 . 3 . Combat Bots Only 3 | . 2 . 3 . Max Kills in Single Turn 1 | . 1 . 1 . Gunslinging . | . . . . . Exploded . | . . . . . Melee 1 | . 1 . 1 . Uniques/NPCs Destroyed . | . . . . . Combat | -11 -10 -10 -9 -9 -------- Run | Scr Mat Min Mat Sto Damage Taken 1710 | . 246 . 1464 . Core 394 | . 18 . 376 . Absorbed by Shields . | . . . . . Core Remaining (%) 96 | 100 . 92 . . Volleys Fired 34 | . 20 . 14 . Largest 2 | . 2 . 2 . Hottest 70 | . 70 . 60 . Shots Fired 55 | . 40 . 15 . Gun 55 | . 40 . 15 . Cannon . | . . . . . Launcher . | . . . . . Special . | . . . . . Kinetic 34 | . 20 . 14 . Thermal 21 | . 20 . 1 . Explosive . | . . . . . Electromagnetic . | . . . . . Robot Hit Streak 9 | . 4 . 9 . Robot Miss Streak 4 | . 4 . 1 . Penetration Max . | . . . . . Secondary Targets . | . . . . . Shots Hit Robots 90 | . 25 . 65 . Core Hits 32 | . 8 . 24 . Critical Hits 4 | . 2 . 2 . Critical Kills 1 | . 1 . . . Critical Parts Destroyed 3 | . 1 . 2 . Melee Attacks 98 | . 5 . 93 . Impact 10 | . . . 10 . Slashing 88 | . 5 . 83 . Piercing . | . . . . . Sneak Attacks 10 | . 3 . 7 . Combat Hostiles . | . . . . . Follow-up Attacks 18 | . 1 . 17 . Damage Inflicted 1980 | . 468 . 1512 . Guns 317 | . 213 . 104 . Cannons . | . . . . . Explosions . | . . . . . Melee 1663 | . 255 . 1408 . Ramming . | . . . . . Kinetic 170 | . 76 . 94 . Thermal 147 | . 137 . 10 . Explosive . | . . . . . Electromagnetic . | . . . . . Impact 254 | . . . 254 . Slashing 1409 | . 255 . 1154 . Piercing . | . . . . . Highest Corruption . | . . . . . Average Corruption . | . . . . . Corruption Purged . | . . . . . Overload Shots . | . . . . . Overflow Damage 211 | . 51 . 160 . Projectiles . | . . . . . Explosions . | . . . . . Melee 211 | . 51 . 160 . Knockbacks 1 | . . . 1 . Impact 1 | . . . 1 . Kinetic . | . . . . . Secondary . | . . . . . Self-Inflicted Damage . | . . . . . Shots . | . . . . . Rammed . | . . . . . Targets Rammed . | . . . . . Kicked . | . . . . . Crushed . | . . . . . Highest Temperature 100 | . 100 . 23 . Average Temperature 33 | . 38 . 8 . Received Heat Transfer 519 | . 18 . 501 . Siege Activations . | . . . . . Robots Corrupted . | . . . . . Combat Hostiles . | . . . . . Parts Fried 2 | . . . 2 . Impact Corruptions 4 | . . . 4 . Robots Melted . | . . . . . Combat Hostiles . | . . . . . Parts Melted . | . . . . . Heat Transferred 432 | . 407 . 25 . Parts Sabotaged . | . . . . . Parts Stolen . | . . . . . Parts Stripped . | . . . . . Power Chain Reactions . | . . . . . Missiles Intercepted . | . . . . . Alert | -11 -10 -10 -9 -9 ------- Run | Scr Mat Min Mat Sto Peak Influence 264 | . 182 70 264 . Initial 70 | . . 70 27 17 Average 92 | . 117 70 94 . Maximum Alert Level 1 | . . . 1 . Low Security (%) 96 | 100 100 100 95 . Level 1 3 | . . . 4 . Level 2 . | . . . . . Level 3 . | . . . . . Level 4 . | . . . . . Level 5 . | . . . . . High Security . | . . . . . Max Security . | . . . . . Squads Dispatched 2 | . 2 . . . Investigation . | . . . . . Extermination . | . . . . . Reinforcement 2 | . 2 . . . Assault . | . . . . . Garrison . | . . . . . Intercept . | . . . . . Construction Impeded . | . . . . . Haulers Reinforced . | . . . . . Stealth | -11 -10 -10 -9 -9 --------- Run | Scr Mat Min Mat Sto Distress Signals 4 | . 3 . 1 . Communications Jammed . | . . . . . Distress Signals . | . . . . . Times Spotted 47 | . 17 . 30 . Peak Tracking Total 8 | . 4 . 8 . Tactical Retreats 3 | . 1 . 2 . Traps | -11 -10 -10 -9 -9 ------- Run | Scr Mat Min Mat Sto Traps Triggered 1 | . 1 . . . Indirectly . | . . . . . Trap Hack Attempts . | . . . . . Triggered . | . . . . . Disarmed . | . . . . . Reprogrammed . | . . . . . Reused . | . . . . . Traps Extracted . | . . . . . Installed . | . . . . . Triggered . | . . . . . Machines | -11 -10 -10 -9 -9 ---------- Run | Scr Mat Min Mat Sto Machines Disabled . | . . . . . Max in Single Turn . | . . . . . Machines Sabotaged . | . . . . . Garrisons Compromised . | . . . . . Overloaded Fab Kills . | . . . . . Fab Network Shutdowns . | . . . . . Hacking | -11 -10 -10 -9 -9 --------- Run | Scr Mat Min Mat Sto Machines Accessed 4 | . 1 . 3 . Terminals 4 | . 1 . 3 . Fabricators . | . . . . . Repair Stations . | . . . . . Recycling Units . | . . . . . Scanalyzers . | . . . . . Garrison Access . | . . . . . Total Hacks 11 | . 2 . 9 . Successful 6 | . . . 6 . Failed 5 | . 2 . 3 . Catastrophic 1 | . 1 . . . Database Lockouts . | . . . . . Manual 4 | . . . 4 . Terminals 11 | . 2 . 9 . Fabricators . | . . . . . Repair Stations . | . . . . . Recycling Units . | . . . . . Scanalyzers . | . . . . . Garrison Access . | . . . . . Terminal Hacks 5 | . . . 5 . Locate Traps 1 | . . . 1 . Reinforcement Status 1 | . . . 1 . Registered Components 1 | . . . 1 . Zone Layout 2 | . . . 2 . Fabricator Hacks . | . . . . . Repair Station Hacks . | . . . . . Recycling Unit Hacks . | . . . . . Scanalyzer . | . . . . . Garrison Access Hacks . | . . . . . Unauthorized Hacks 1 | . . . 1 . Terminals 1 | . . . 1 . Assimilate 1 | . . . 1 . Fabricators . | . . . . . Repair Stations . | . . . . . Recycling Units . | . . . . . Scanalyzers . | . . . . . Garrison Access . | . . . . . Data Cores Recovered . | . . . . . Used . | . . . . . Hacking Detections 4 | . 1 . 3 . Full Trace Events 2 | . 1 . 1 . Feedback Events . | . . . . . Feedback Blocked . | . . . . . Robot Schematics Acquired . | . . . . . Robots Built . | . . . . . Matter . | . . . . . Time . | . . . . . Total Robot Build Rating . | . . . . . Part Schematics Acquired . | . . . . . Parts Built . | . . . . . Matter . | . . . . . Time . | . . . . . Total Part Build Rating . | . . . . . Parts Repaired . | . . . . . Time . | . . . . . Parts Recycled . | . . . . . Recycled Matter . | . . . . . Retrieved Matter . | . . . . . Retrieved Components . | . . . . . Parts Scanalyzed . | . . . . . Part Schematics Acquired . | . . . . . Parts Damaged . | . . . . . Bothacking | -11 -10 -10 -9 -9 ------------ Run | Scr Mat Min Mat Sto Used RIF Installer . | . . . . . Robots Hacked . | . . . . . Non-combat . | . . . . . Combat . | . . . . . Robot Hacks Applied . | . . . . . Relay Couplers Released . | . . . . . Robots Rewired . | . . . . . Allies Hacked . | . . . . . Hacks Repelled . | . . . . . Allies | -11 -10 -10 -9 -9 -------- Run | Scr Mat Min Mat Sto Total Allies . | . . . . . Largest Group . | . . . . . Highest-Rated Group . | . . . . . Highest-Rated Ally . | . . . . . Total Orders . | . . . . . Ally Attacks . | . . . . . Total Damage . | . . . . . Kills . | . . . . . Allies Corrupted . | . . . . . Allies Melted . | . . . . . Intel | -11 -10 -10 -9 -9 ------- Run | Scr Mat Min Mat Sto Robot Analysis Total . | . . . . . Derelict Logs Recovered . | . . . . . Drone Launches . | . . . . . Drone Recoveries . | . . . . . Exploration | -11 -10 -10 -9 -9 ------------- Run | Scr Mat Min Mat Sto Turns Passed 1350 | 76 300 81 893 . Spaces Moved 560 | 41 126 38 355 . Core 11 | 2 . . 9 . Treads 465 | 39 126 38 262 . Legs 84 | . . . 84 . Wheels . | . . . . . Hover . | . . . . . Flight . | . . . . . Fastest Speed 50 | 50 160 160 100 . Average Speed 152 | 154 160 160 149 . Slowest Speed 160 | 160 160 160 160 . Overloaded Moves . | . . . . . Propulsion Burnouts . | . . . . . Robots Hopped . | . . . . . Cave-ins Triggered . | . . . . . Exploration Rate (%) 15 | 5 28 17 27 2 Regions Visited 4 Branch Regions 2 Pre-discovered Areas . | . . . . . Known Exits Taken . | . . . . . Unknown Exits Taken 4 | 1 1 1 1 . Scrap Searched . | . . . . . Spaces Dug . | . . . . . Terrain Destroyed . | . . . . . Melee . | . . . . . Projectile . | . . . . . AOE . | . . . . . Terrain Rammed . | . . . . . Walls Destroyed . | . . . . . Machines Disabled . | . . . . . Actions | -11 -10 -10 -9 -9 --------- Run | Scr Mat Min Mat Sto Total 833 | 51 180 58 544 . Wait 124 | . 18 21 85 . Move 556 | 40 125 37 354 . Hop . | . . . . . Pick Up 10 | 5 5 . . . Fast Attach 18 | 5 2 . 11 . Attach 6 | 1 . . 5 . Detach 2 | . . . 2 . Swap 2 | . 2 . . . Drop 4 | . 4 . . . Fire 34 | . 20 . 14 . Melee 77 | . 4 . 73 . Ram . | . . . . . Kick . | . . . . . Crush . | . . . . . Escape Stasis . | . . . . . Rewire . | . . . . . Trap . | . . . . . Miscellaneous . | . . . . . Route ------- -11/Scrapyard -10/Materials -10/Mines -9/Materials -9/Storage History --------- Turn | Location | Event 6 | -11/Scrapyard | Discovered new exit (range 15) 77 | -11/Scrapyard | Entered Materials 314 | -10/Materials | Build established: Mutant 334 | -10/Materials | Discovered new exit (range 7) 377 | -10/Materials | Entered Mines 442 | -10/Mines | Discovered new exit (range 10) 458 | -10/Mines | Entered Materials 458 | -9/Materials | Evolved 2 slots: Utility x1, Weapon x1 929 | -9/Materials | Core integrity fell below 50% 967 | -9/Materials | Lost 4 parts (2n1u1w) 1151 | -9/Materials | Discovered new exit (range 17) 1154 | -9/Materials | Core integrity fell below 20% 1251 | -9/Materials | Lost 3 parts (1n1u1w) 1351 | -9/Materials | Entered Storage 1351 | -9/Storage | Self-destructed Last Messages --------------- 01274_ K-01 Serf collects debris. 01295_ Sneak attack on T-07 Excavator. 01295_ Destroyed Seismic Analyzer. 01295_ Destroyed Mining Laser. 01295_ T-07 Excavator system corrupted by crushing effect. 01296_ T-07 Excavator system terminally corrupted. 01296_ Wheel fried. 01304_ K-01 Serf cleans the Pressure Siphon. 01323_ W-16 Scout destroyed. 01324_ K-01 Serf collects debris. 01326_ Acquired 30 matter. 01328_ Sneak attack on K-01 Serf. 01328_ Destroyed Sml. Matter Pod. 01328_ Destroyed Lgt. Ion Engine. 01328_ K-01 Serf system corrupted by crushing effect. 01328_ K-01 Serf knocked back. 01329_ K-01 Serf system terminally corrupted. 01329_ Wheel fried. LOCATION=UNKNOWN GOAL=ESCAPE Map ----- +----------------------------------------------------+ | | | | | | | | | | | | | | | | | | | | | | | | | | | ????????????????????????????????? | | ????????????????????????????????? | | ????????????????????????????????? | | ????????????????????????????????? | | ????????????????????????????????? | | ????????????????????????????????? | | ????????????????????????????????? | | ????????????????????????????????? | | ????????????????????????????????? | | ????????????????????????????????? | | ???????????????????????#####????? | | ???????????????????????# #????? | | ???????????????????????# @ #????? | | ???????????????????????# #????? | | ???????????????????????# #????? | | ???????????????????????# #????? | | ???????????????????????# #????? | | ???????????????????????# #????? | | ??????????????????????? #????? | | ??????????????????????? #????? | | ??????????????????????? #????? | | ??????????????????????## #????? | | ???????????????????????# #????? | | ???????????????????????# #????? | | ???????????????????????# #????? | | ???????????????????????# #????? | | ???????????????????????# #????? | | ???????????????????????? ?????? | | ???????????????????????? ?????? | | ???????????????????????? ?????? | | ????????????????????????????????? | | ????????????????????????????????? | | ????????????????????????????????? | | ????????????????????????????????? | | ????????????????????????????????? | | ????????????????????????????????? | | ????????????????????????????????? | +----------------------------------------------------+ Best States ------------- Heat Dissipation 28 Energy Generation 10 Energy Capacity 125 Matter Stores 300 Matter Capacity 300 Sight Range 18 Robot Scan Range 10 Terrain Scan Density 10 Armor Coverage 150 Evasion (%) 40 Recoil Reduction 2 Item Schematics ----------------- None Robot Schematics ------------------ None Fabricated ------------ Nothing Alien Tech Used ----------------- None Achievements -------------- None Challenges ------------ None Game ------ Seed ZioniteCentriumWand Manual? 0 Play Time 00:08:47 Cumulative 106.8 hours Start 2021.01.07 @ 09:38:18 End 2021.01.07 @ 09:50:15 Sessions 1 Manual Loads 0 Difficulty Rogue Special Mode None Game No. 203 Rogue 199 Adventurer 0 Explorer 4 Win Type - Total 0 Types 0/0/0/0/0/0/0/0/0 Lore% 62 Gallery% 69 Achievement% 48 Wizard Run 0 Options --------- ASCII 1 Keyboard 1 Movement Numpad Keybinds 0 Fullscreen 1 Font 18/SmallcapsGlow Map View 76x50 Tactical HUD 1 Map Filters NONE Filters NONE Steam 1 RUN: 5500fbdb-d8e9-47e0-acbd-37057b59e232